fUST/lending_fUST_20250819
["ID","MTS","AMOUNT","RATE_DAILY","PERIOD"]
[380180476,1755595843498,-480.0,0.00019452,2]
[380180477,1755595843508,-6147.77,0.00019452,2]
[380180478,1755595843517,-480.0,0.00019452,2]
[380180479,1755595843526,-239.38561285,0.00019452,2]
[380180480,1755595843536,-480.0,0.00019452,2]
[380180481,1755595843545,-1737.58,0.00019452,2]
[380180482,1755595843554,-480.0,0.00019452,2]
[380180483,1755595843563,-498.43607098,0.00019452,2]
[380180484,1755595843572,-480.0,0.00019452,2]
[380180485,1755595843581,-689.79,0.00019452,2]
[380180486,1755595843590,-480.0,0.00019452,2]
[380180487,1755595843599,-647.49,0.00019452,2]
[380180488,1755595843608,-480.0,0.00019452,2]
[380180489,1755595843617,-480.0,0.00019452,2]
[380180490,1755595843626,-480.0,0.00019452,2]
[380180491,1755595843635,-480.0,0.00019452,2]
[380180492,1755595843644,-480.0,0.00019452,2]
[380180493,1755595843653,-690.17,0.00019452,2]
[380180494,1755595843662,-480.0,0.00019452,2]
[380180496,1755595843672,-529.61,0.00019452,2]
[380180497,1755595843681,-1419.73,0.00019452,2]
[380180499,1755595843690,-480.0,0.00019452,2]
[380180501,1755595843699,-484.03177154,0.00019452,2]
[380180502,1755595843709,-480.0,0.00019452,2]
[380180503,1755595843718,-489.16884038,0.00019452,2]
[380180504,1755595843727,-710.71,0.00019452,2]
[380180505,1755595843736,-480.0,0.00019452,2]
[380180506,1755595843746,-480.0,0.00019452,2]
[380180507,1755595843755,-422.67044105,0.00019452,2]
[380180508,1755595843765,-480.0,0.00019452,2]
[380180509,1755595843774,-839.54,0.00019452,2]
[380180510,1755595843784,-480.0,0.00019452,2]
[380180511,1755595843793,-480.0,0.00019452,2]
[380180512,1755595843803,-839.03,0.00019452,2]
[380180513,1755595843812,-480.0,0.00019452,2]
[380180514,1755595843822,-480.0,0.00019452,2]
[380180515,1755595843831,-480.0,0.00019452,2]
[380180516,1755595843840,-480.0,0.00019452,2]
[380180517,1755595843849,-2368.07,0.00019452,2]
[380180518,1755595843858,-480.0,0.00019452,2]
[380180519,1755595843867,-480.0,0.00019452,2]
[380180520,1755595843876,-480.0,0.00019452,2]
[380180521,1755595843886,-480.0,0.00019452,2]
[380180522,1755595843895,-480.0,0.00019452,2]
[380180523,1755595843904,-3297.08,0.00019452,2]
[380180524,1755595843913,-2481.53,0.00019452,2]
[380180525,1755595843922,-480.0,0.00019452,2]
[380180526,1755595843932,-1162.54,0.00019452,2]
[380180527,1755595843940,-887.6,0.00019452,2]
[380180528,1755595843950,-480.0,0.00019452,2]
[380180529,1755595843959,-480.0,0.00019452,2]
[380180530,1755595843968,-412.2096394,0.00019452,2]
[380180531,1755595843977,-736.12,0.00019452,2]
[380180532,1755595843986,-1298.0,0.00019452,2]
[380180533,1755595843995,-480.0,0.00019452,2]
[380180534,1755595844004,-480.0,0.00019452,2]
[380180535,1755595844014,-890.08,0.00019452,2]
[380180536,1755595844023,-480.0,0.00019452,2]
[380180537,1755595844032,-480.0,0.00019452,2]
[380180538,1755595844122,-400.0,0.00019452,2]
[380180539,1755595844133,-2728.91,0.00019452,2]
[380180540,1755595844142,-480.0,0.00019452,2]
[380180541,1755595844152,-480.0,0.00019452,2]
[380180542,1755595844163,-480.0,0.00019452,2]
[380180543,1755595844172,-480.0,0.00019452,2]
[380180544,1755595844186,-903.43,0.00019452,2]
[380180545,1755595844196,-480.0,0.00019452,2]
[380180546,1755595844205,-841.68,0.00019452,2]
[380180547,1755595844214,-480.0,0.00019452,2]
[380180548,1755595844224,-480.0,0.00019452,2]
[380180549,1755595844233,-480.0,0.00019452,2]
[380180550,1755595844242,-480.0,0.00019452,2]
[380180551,1755595844251,-387.94525043,0.00019452,2]
[380180552,1755595844260,-501.00130581,0.00019473,2]
[380180553,1755595844269,-500.0,0.00019473,2]
[380180554,1755595844278,-500.0,0.00019473,2]
[380180555,1755595844288,-500.0,0.00019473,2]
[380180556,1755595844297,-500.0,0.00019473,2]
[380180557,1755595844306,-500.0,0.00019473,2]
[380180558,1755595844316,-165.95922728,0.00019489,2]
[380180559,1755595844326,-500.0,0.00019501,2]
[380180560,1755595844335,-215.79176414,0.00019522,2]
[380180561,1755595844344,-160.0,0.00019522,2]
[380180562,1755595844353,-417.15472785,0.00019522,2]
[380180563,1755595844362,-12685.85563623,0.00019522,2]
[380180564,1755595844371,-160.0,0.00019522,2]
[380180565,1755595844380,-160.0,0.00019522,2]
[380180566,1755595844390,-528.6845513,0.00019522,2]
[380180567,1755595844399,-160.0,0.00019522,2]
[380180568,1755595844409,-216.8835046,0.00019522,2]
[380180569,1755595844421,-232.21311493,0.00019522,2]
[380180570,1755595844430,-160.0,0.00019522,2]
[380180571,1755595844439,-375.88899365,0.00019522,2]
[380180572,1755595844451,-160.0,0.00019522,2]
[380180573,1755595844460,-160.0,0.00019522,2]
[380180574,1755595844469,-160.0,0.00019522,2]
[380180575,1755595844478,-843.93972674,0.00019522,2]
[380180576,1755595844487,-160.0,0.00019524,2]
[380180577,1755595844496,-249.6,0.00019557,2]
[380180578,1755595844506,-200.0,0.00019561,20]
[380180579,1755595844515,-200.0,0.00019561,20]
[380180580,1755595844525,-200.0,0.00019561,20]
[380180581,1755595844534,-200.0,0.00019561,20]
[380180582,1755595844543,-200.0,0.00019561,20]
[380180583,1755595844552,-200.0,0.00019561,20]
[380180584,1755595844561,-200.0,0.00019561,20]
[380180585,1755595844570,-200.0,0.00019561,20]
[380180586,1755595844579,-200.0,0.00019561,20]
[380180587,1755595844588,-200.0,0.00019561,20]
[380180588,1755595844598,-200.0,0.00019561,20]
[380180589,1755595844607,-200.0,0.00019561,20]
[380180590,1755595844616,-200.0,0.00019561,20]
[380180591,1755595844625,-200.0,0.00019561,20]
[380180592,1755595844635,-200.0,0.00019561,20]
[380180593,1755595844644,-200.0,0.00019561,20]
[380180594,1755595844653,-200.0,0.00019561,20]
[380180595,1755595844662,-200.0,0.00019561,20]
[380180596,1755595844671,-200.0,0.00019561,20]
[380180597,1755595844680,-200.0,0.00019561,20]
[380180598,1755595844690,-600.0,0.00019561,20]
[380180599,1755595844700,-4914.37365472,0.00019638,2]
[380180600,1755595844709,-500.0,0.00019638,2]
[380180601,1755595844718,-500.0,0.00019725,2]
[380180602,1755595844727,-480.0,0.00019726,2]
[380180603,1755595844737,-480.0,0.00019726,2]
[380180604,1755595844746,-480.0,0.00019726,2]
[380180605,1755595844756,-440.0,0.00019726,2]
[380180606,1755595844764,-480.0,0.00019726,2]
[380180607,1755595844774,-480.0,0.00019726,2]
[380180608,1755595844783,-460.0,0.00019726,2]
[380180609,1755595844792,-480.0,0.00019726,2]
[380180610,1755595844801,-480.0,0.00019726,2]
[380180611,1755595844811,-480.0,0.00019726,2]
[380180612,1755595844820,-480.0,0.00019726,2]
[380180613,1755595844829,-480.0,0.00019726,2]
[380180614,1755595844838,-480.0,0.00019726,2]
[380180615,1755595844847,-480.0,0.00019726,2]
[380180616,1755595844856,-480.0,0.00019726,2]
[380180617,1755595844865,-480.0,0.00019726,2]
[380180618,1755595844874,-480.0,0.00019726,2]
[380180619,1755595844883,-480.0,0.00019726,2]
[380180620,1755595844892,-480.0,0.00019726,2]
[380180621,1755595844902,-619.28704586,0.00019726,2]
[380180622,1755595844912,-460.0,0.00019726,2]
[380180623,1755595844921,-482.12760775,0.00019726,2]
[380180624,1755595844931,-480.0,0.00019726,2]
[380180625,1755595844940,-440.0,0.00019726,2]
[380180626,1755595844949,-480.0,0.00019726,2]
[380180627,1755595844959,-480.0,0.00019726,2]
[380180628,1755595844968,-480.0,0.00019726,2]
[380180629,1755595844977,-480.0,0.00019726,2]
[380180630,1755595844986,-480.0,0.00019726,2]
[380180631,1755595844995,-480.0,0.00019726,2]
[380180632,1755595845004,-480.0,0.00019726,2]
[380180633,1755595845013,-959.18,0.00019726,2]
[380180634,1755595845023,-484.03214267,0.00019726,2]
[380180635,1755595845032,-480.0,0.00019726,2]
[380180636,1755595845041,-480.0,0.00019726,2]
[380180637,1755595845051,-480.0,0.00019726,2]
[380180638,1755595845060,-668.42,0.00019726,2]
[380180639,1755595845069,-480.0,0.00019726,2]
[380180640,1755595845078,-480.0,0.00019726,2]
[380180641,1755595845087,-480.0,0.00019726,2]
[380180642,1755595845096,-440.0,0.00019726,2]
[380180643,1755595845105,-480.0,0.00019726,2]
[380180644,1755595845114,-480.0,0.00019726,2]
[380180645,1755595845123,-480.0,0.00019726,2]
[380180646,1755595845132,-480.0,0.00019726,2]
[380180647,1755595845141,-480.0,0.00019726,2]
[380180648,1755595845150,-480.0,0.00019726,2]
[380180649,1755595845159,-222.964643,0.00019726,2]
[380180650,1755595845167,-235.1457587,0.00019726,2]
[380180651,1755595845177,-480.0,0.00019726,2]
[380180652,1755595845186,-480.0,0.00019726,2]
[380180653,1755595845196,-480.0,0.00019726,2]
[380180654,1755595845206,-480.0,0.00019726,2]
[380180655,1755595845215,-480.0,0.00019726,2]
[380180656,1755595845224,-480.0,0.00019726,2]
[380180657,1755595845233,-480.0,0.00019726,2]
[380180658,1755595845242,-480.0,0.00019726,2]
[380180659,1755595845252,-292.04045154,0.00019726,2]
[380180660,1755595845261,-480.0,0.00019726,2]
[380180661,1755595845270,-268.78406455,0.00019726,2]
[380180662,1755595845279,-480.0,0.00019726,2]
[380180663,1755595845289,-480.0,0.00019726,2]
[380180664,1755595845299,-554.08,0.00019726,2]
[380180665,1755595845308,-729.29,0.00019726,2]
[380180666,1755595845317,-371.01898841,0.00019726,2]
[380180667,1755595845326,-1266.02,0.00019726,2]
[380180668,1755595845336,-480.0,0.00019726,2]
[380180669,1755595845345,-480.0,0.00019726,2]
[380180671,1755595845354,-759.37,0.00019726,2]
[380180672,1755595845363,-480.0,0.00019726,2]
[380180673,1755595845372,-380.0,0.00019726,2]
[380180674,1755595845381,-480.0,0.00019726,2]
[380180675,1755595845390,-998.44,0.00019726,2]
[380180676,1755595845399,-480.0,0.00019726,2]
[380180677,1755595845409,-480.0,0.00019726,2]
[380180678,1755595845422,-480.0,0.00019726,2]
[380180679,1755595845432,-480.0,0.00019726,2]
[380180680,1755595845442,-480.0,0.00019726,2]
[380180681,1755595845451,-480.0,0.00019726,2]
[380180682,1755595845461,-591.19,0.00019726,2]
[380180683,1755595845471,-480.0,0.00019726,2]
[380180684,1755595845480,-480.0,0.00019726,2]
[380180685,1755595845489,-480.0,0.00019726,2]
[380180686,1755595845499,-855.31,0.00019726,2]
[380180687,1755595845509,-480.0,0.00019726,2]
[380180688,1755595845518,-480.0,0.00019726,2]
[380180689,1755595845527,-1682.16,0.00019726,2]
[380180690,1755595845536,-512.03,0.00019726,2]
[380180691,1755595845545,-480.0,0.00019726,2]
[380180692,1755595845629,-488.81640553,0.00019726,2]
[380180693,1755595845639,-480.0,0.00019726,2]
[380180694,1755595845648,-480.0,0.00019726,2]
[380180695,1755595845658,-480.0,0.00019726,2]
[380180696,1755595845668,-480.0,0.00019726,2]
[380180697,1755595845677,-480.0,0.00019726,2]
[380180698,1755595845686,-480.0,0.00019726,2]
[380180699,1755595845696,-480.0,0.00019726,2]
[380180700,1755595845705,-1412.57,0.00019726,2]
[380180701,1755595845714,-480.0,0.00019726,2]
[380180702,1755595845724,-4082.28,0.00019726,2]
[380180703,1755595845733,-1398.5,0.00019726,2]
[380180704,1755595845742,-649.41,0.00019726,2]
[380180705,1755595845751,-480.0,0.00019726,2]
[380180706,1755595845760,-1182.67,0.00019726,2]
[380180707,1755595845770,-808.41,0.00019726,2]
[380180708,1755595845779,-582.9200745,0.00019726,2]
[380180709,1755595845788,-579.25,0.00019726,2]
[380180711,1755595845797,-205.97658574,0.00019726,2]
[380180712,1755595845806,-749.54,0.00019726,2]
[380180713,1755595845815,-480.0,0.00019726,2]
[380180715,1755595845824,-611.73,0.00019726,2]
[380180716,1755595845833,-480.0,0.00019726,2]
[380180717,1755595845843,-667.49,0.00019726,2]
[380180718,1755595845852,-681.34,0.00019726,2]
[380180719,1755595845862,-1116.36,0.00019726,2]
[380180720,1755595845871,-480.0,0.00019726,2]
[380180721,1755595845883,-480.0,0.00019726,2]
[380180722,1755595845892,-993.66,0.00019726,2]
[380180724,1755595845901,-480.0,0.00019726,2]
[380180726,1755595845910,-480.0,0.00019726,2]
[380180728,1755595845919,-480.0,0.00019726,2]
[380180730,1755595845928,-560.75,0.00019726,2]
[380180732,1755595845937,-480.0,0.00019726,2]
[380180734,1755595845947,-480.0,0.00019726,2]
[380180736,1755595845956,-480.0,0.00019726,2]
[380180738,1755595845965,-2023.2,0.00019726,2]
[380180740,1755595845974,-480.0,0.00019726,2]
[380180742,1755595845984,-2315.47,0.00019726,2]
[380180744,1755595845993,-897.37,0.00019726,2]
[380180746,1755595846002,-440.0,0.00019726,2]
[380180748,1755595846011,-480.0,0.00019726,2]
[380180750,1755595846020,-556.91,0.00019726,2]
[380180752,1755595846029,-480.0,0.00019726,2]
[380180754,1755595846038,-480.0,0.00019726,2]
[380180756,1755595846047,-2161.73,0.00019726,2]
[380180757,1755595846056,-480.0,0.00019726,2]
[380180759,1755595846065,-480.0,0.00019726,2]
[380180761,1755595846074,-480.0,0.00019726,2]
[380180763,1755595846084,-7036.22,0.00019726,2]
[380180765,1755595846093,-480.0,0.00019726,2]
[380180767,1755595846103,-480.0,0.00019726,2]
[380180769,1755595846111,-6147.77,0.00019726,2]
[380180771,1755595846121,-480.0,0.00019726,2]
[380180773,1755595846130,-480.0,0.00019726,2]
[380180775,1755595846139,-1737.58,0.00019726,2]
[380180777,1755595846149,-480.0,0.00019726,2]
[380180780,1755595846159,-689.79,0.00019726,2]
[380180782,1755595846169,-480.0,0.00019726,2]
[380180784,1755595846178,-647.49,0.00019726,2]
[380180786,1755595846188,-480.0,0.00019726,2]
[380180787,1755595846198,-480.0,0.00019726,2]
[380180789,1755595846208,-480.0,0.00019726,2]
[380180791,1755595846217,-480.0,0.00019726,2]
[380180793,1755595846226,-480.0,0.00019726,2]
[380180795,1755595846236,-690.17,0.00019726,2]
[380180797,1755595846246,-480.0,0.00019726,2]
[380180799,1755595846255,-529.61,0.00019726,2]
[380180801,1755595846264,-1419.73,0.00019726,2]
[380180803,1755595846272,-480.0,0.00019726,2]
[380180805,1755595846282,-480.0,0.00019726,2]
[380180807,1755595846291,-710.71,0.00019726,2]
[380180809,1755595846300,-480.0,0.00019726,2]
[380180810,1755595846309,-480.0,0.00019726,2]
[380180811,1755595846318,-480.0,0.00019726,2]
[380180813,1755595846328,-488.70975672,0.00019726,2]
[380180814,1755595846337,-480.0,0.00019726,2]
[380180815,1755595846346,-839.03,0.00019726,2]
[380180816,1755595846356,-480.0,0.00019726,2]
[380180817,1755595846365,-480.0,0.00019726,2]
[380180818,1755595846374,-839.54,0.00019726,2]
[380180819,1755595846382,-480.0,0.00019726,2]
[380180820,1755595846392,-480.0,0.00019726,2]
[380180821,1755595846401,-2368.07,0.00019726,2]
[380180822,1755595846410,-480.0,0.00019726,2]
[380180823,1755595846424,-480.0,0.00019726,2]
[380180824,1755595846433,-480.0,0.00019726,2]
[380180825,1755595846442,-480.0,0.00019726,2]
[380180826,1755595846451,-3297.08,0.00019726,2]
[380180827,1755595846461,-480.0,0.00019726,2]
[380180828,1755595846470,-1162.54,0.00019726,2]
[380180829,1755595846479,-887.6,0.00019726,2]
[380180830,1755595846489,-480.0,0.00019726,2]
[380180831,1755595846498,-480.0,0.00019726,2]
[380180832,1755595846508,-2481.53,0.00019726,2]
[380180833,1755595846517,-736.12,0.00019726,2]
[380180834,1755595846526,-1298.0,0.00019726,2]
[380180835,1755595846538,-480.0,0.00019726,2]
[380180836,1755595846547,-480.0,0.00019726,2]
[380180837,1755595846556,-890.08,0.00019726,2]
[380180838,1755595846565,-480.0,0.00019726,2]
[380180839,1755595846576,-2728.91,0.00019726,2]
[380180840,1755595846585,-480.0,0.00019726,2]
[380180841,1755595846595,-480.0,0.00019726,2]
[380180842,1755595846604,-480.0,0.00019726,2]
[380180843,1755595846613,-384.06795447,0.00019726,2]
[380180844,1755595846622,-903.43,0.00019726,2]
[380180845,1755595846632,-460.0,0.00019726,2]
[380180846,1755595846641,-480.0,0.00019726,2]
[380180847,1755595846651,-841.68,0.00019726,2]
[380180848,1755595846660,-480.0,0.00019726,2]
[380180849,1755595846669,-480.0,0.00019726,2]
[380180850,1755595846678,-420.0,0.00019726,2]
[380180851,1755595846687,-490.935053,0.00019863,2]
[380180852,1755595846698,-500.0,0.00019899,2]
[380180853,1755595846707,-5016.65081127,0.000199,2]
[380180854,1755595846716,-165.95922728,0.000199,2]
[380180855,1755595846726,-500.0,0.00019973,2]
[380180856,1755595846735,-500.0,0.00019973,2]
[380180857,1755595846744,-58545.35867908,0.0001999,2]
[380180858,1755595846961,-41454.64132092,0.0001999,2]
[380180859,1755595846970,-500.0,0.00019999,2]
[380180860,1755595846979,-480.0,0.0002,2]
[380180861,1755595846989,-480.0,0.0002,2]
[380180862,1755595846998,-480.0,0.0002,2]
[380180863,1755595847007,-186.37651637,0.0002,2]
[380180864,1755595847017,-480.0,0.0002,2]
[380180865,1755595847026,-480.0,0.0002,2]
[380180866,1755595847036,-480.0,0.0002,2]
[380180867,1755595847045,-480.0,0.0002,2]
[380180868,1755595847054,-445.74969757,0.0002,2]
[380180869,1755595847063,-556.30179579,0.0002,2]
[380180870,1755595847072,-195.6953422,0.0002,2]
[380180871,1755595847081,-480.0,0.0002,2]
[380180872,1755595847090,-382.82287181,0.0002,2]
[380180873,1755595847100,-480.0,0.0002,2]
[380180874,1755595847110,-480.0,0.0002,2]
[380180875,1755595847119,-480.0,0.0002,2]
[380180876,1755595847129,-501.03,0.0002,2]
[380180877,1755595847139,-480.0,0.0002,2]
[380180878,1755595847148,-424.84335385,0.0002,2]
[380180879,1755595847159,-480.0,0.0002,2]
[380180880,1755595847168,-480.0,0.0002,2]
[380180881,1755595847178,-959.18,0.0002,2]
[380180882,1755595847187,-480.0,0.0002,2]
[380180883,1755595847196,-480.0,0.0002,2]
[380180884,1755595847205,-480.0,0.0002,2]
[380180885,1755595847215,-668.42,0.0002,2]
[380180886,1755595847225,-480.0,0.0002,2]
[380180887,1755595847235,-480.0,0.0002,2]
[380180888,1755595847245,-620.71517411,0.0002,2]
[380180889,1755595847254,-480.0,0.0002,2]
[380180890,1755595847264,-480.0,0.0002,2]
[380180891,1755595847273,-480.0,0.0002,2]
[380180892,1755595847282,-480.0,0.0002,2]
[380180893,1755595847292,-480.0,0.0002,2]
[380180894,1755595847301,-222.964643,0.0002,4]
[380180895,1755595847311,-480.0,0.0002,2]
[380180896,1755595847320,-480.0,0.0002,2]
[380180897,1755595847329,-354.79452101,0.0002,2]
[380180898,1755595847338,-480.0,0.0002,2]
[380180899,1755595847347,-604.29925035,0.0002,2]
[380180900,1755595847356,-480.0,0.0002,2]
[380180901,1755595847365,-480.0,0.0002,2]
[380180902,1755595847375,-445.31885404,0.0002,2]
[380180903,1755595847384,-480.0,0.0002,2]
[380180904,1755595847393,-480.0,0.0002,2]
[380180905,1755595847402,-480.0,0.0002,2]
[380180906,1755595847411,-554.08,0.0002,2]
[380180907,1755595847424,-729.29,0.0002,2]
[380180908,1755595847434,-1266.02,0.0002,2]
[380180909,1755595847443,-261.28086389,0.0002,2]
[380180910,1755595847454,-480.0,0.0002,2]
[380180911,1755595847463,-759.37,0.0002,2]
[380180912,1755595847472,-480.0,0.0002,2]
[380180913,1755595847481,-480.0,0.0002,2]
[380180914,1755595847491,-998.44,0.0002,2]
[380180915,1755595847501,-480.0,0.0002,2]
[380180916,1755595847510,-480.0,0.0002,2]
[380180917,1755595847520,-497.21790699,0.0002,2]
[380180918,1755595847529,-480.0,0.0002,2]
[380180919,1755595847538,-480.0,0.0002,2]
[380180920,1755595847548,-480.0,0.0002,2]
[380180921,1755595847557,-591.19,0.0002,2]
[380180922,1755595847566,-480.0,0.0002,2]
[380180923,1755595847575,-332.86379426,0.0002,2]
[380180924,1755595847585,-480.0,0.0002,2]
[380180925,1755595847594,-855.31,0.0002,2]
[380180926,1755595847603,-480.0,0.0002,2]
[380180927,1755595847612,-480.0,0.0002,2]
[380180928,1755595847623,-1682.16,0.0002,2]
[380180929,1755595847632,-151.0,0.0002,2]
[380180930,1755595847641,-151.0,0.0002,2]
[380180931,1755595847649,-151.0,0.0002,2]
[380180932,1755595847659,-151.0,0.0002,2]
[380180933,1755595847668,-151.0,0.0002,2]
[380180934,1755595847678,-512.03,0.0002,2]
[380180935,1755595847687,-480.0,0.0002,2]
[380180936,1755595847696,-480.0,0.0002,2]
[380180937,1755595847705,-151.744069,0.0002,2]
[380180938,1755595847714,-480.0,0.0002,2]
[380180939,1755595847723,-242.755203,0.0002,2]
[380180940,1755595847732,-480.0,0.0002,2]
[380180941,1755595847740,-480.0,0.0002,2]
[380180942,1755595847749,-480.0,0.0002,2]
[380180943,1755595847758,-480.0,0.0002,2]
[380180944,1755595847768,-1412.57,0.0002,2]
[380180945,1755595847777,-480.0,0.0002,2]
[380180946,1755595847785,-4082.28,0.0002,2]
[380180947,1755595847794,-151.0,0.0002,2]
[380180948,1755595847803,-151.0,0.0002,2]
[380180949,1755595847812,-1398.5,0.0002,2]
[380180950,1755595847821,-151.0,0.0002,2]
[380180951,1755595847831,-649.41,0.0002,2]
[380180952,1755595847840,-151.0,0.0002,2]
[380180953,1755595847849,-629.24726506,0.0002,2]
[380180954,1755595847858,-1182.67,0.0002,2]
[380180955,1755595847868,-151.0,0.0002,2]
[380180956,1755595847877,-808.41,0.0002,2]
[380180957,1755595847886,-579.25,0.0002,2]
[380180958,1755595847895,-153.600496,0.0002,2]
[380180959,1755595847904,-749.54,0.0002,2]
[380180960,1755595847914,-480.0,0.0002,2]
[380180961,1755595847923,-480.0,0.0002,2]
[380180962,1755595847932,-611.73,0.0002,2]
[380180963,1755595847941,-151.0,0.0002,2]
[380180964,1755595847951,-667.49,0.0002,2]
[380180965,1755595847961,-681.34,0.0002,2]
[380180966,1755595847970,-1116.36,0.0002,2]
[380180967,1755595847979,-480.0,0.0002,2]
[380180968,1755595847988,-480.0,0.0002,2]
[380180969,1755595847997,-993.66,0.0002,2]
[380180970,1755595848006,-480.0,0.0002,2]
[380180971,1755595848016,-420.0,0.0002,2]
[380180972,1755595848025,-480.0,0.0002,2]
[380180973,1755595848035,-560.75,0.0002,2]
[380180974,1755595848044,-151.0,0.0002,2]
[380180975,1755595848053,-480.0,0.0002,2]
[380180976,1755595848062,-369.18380249,0.0002,2]
[380180977,1755595848071,-480.0,0.0002,2]
[380180978,1755595848154,-2023.2,0.0002,2]
[380180979,1755595848163,-189.707204,0.0002,2]
[380180980,1755595848173,-480.0,0.0002,2]
[380180981,1755595848182,-189.707204,0.0002,2]
[380180982,1755595848191,-2315.47,0.0002,2]
[380180983,1755595848202,-151.0,0.0002,2]
[380180984,1755595848211,-151.0,0.0002,2]
[380180985,1755595848221,-897.37,0.0002,2]
[380180986,1755595848230,-151.0,0.0002,2]
[380180987,1755595848239,-556.91,0.0002,2]
[380180988,1755595848248,-480.0,0.0002,2]
[380180989,1755595848258,-480.0,0.0002,2]
[380180990,1755595848267,-2161.73,0.0002,2]
[380180991,1755595848276,-480.0,0.0002,2]
[380180992,1755595848285,-151.0,0.0002,2]
[380180993,1755595848295,-480.0,0.0002,2]
[380180994,1755595848304,-151.0,0.0002,2]
[380180995,1755595848314,-24027.37631224,0.0002,2]
[380180996,1755595848323,-480.0,0.0002,2]
[380180997,1755595848332,-7036.22,0.0002,2]
[380180998,1755595848342,-480.0,0.0002,2]
[380180999,1755595848351,-160.0,0.0002,3]
[380181000,1755595848360,-480.0,0.0002,2]
[380181001,1755595848369,-6147.77,0.0002,2]
[380181002,1755595848379,-215.00000069,0.0002,2]
[380181003,1755595848388,-1737.58,0.0002,2]
[380181004,1755595848397,-191.57406264,0.0002,2]
[380181005,1755595848407,-689.79,0.0002,2]
[380181006,1755595848418,-558.02013117,0.0002,2]
[380181007,1755595848429,-647.49,0.0002,2]
[380181008,1755595848439,-480.0,0.0002,2]
[380181009,1755595848448,-426.44,0.0002,2]
[380181010,1755595848459,-480.0,0.0002,2]
[380181011,1755595848468,-480.0,0.0002,2]
[380181012,1755595848478,-211.484218,0.0002,2]
[380181013,1755595848487,-690.17,0.0002,2]
[380181014,1755595848497,-529.61,0.0002,2]
[380181015,1755595848508,-151.0,0.0002,2]
[380181016,1755595848517,-1419.73,0.0002,2]
[380181017,1755595848527,-480.0,0.0002,2]
[380181018,1755595848536,-211.484218,0.0002,2]
[380181019,1755595848545,-536.157911,0.0002,2]
[380181020,1755595848554,-480.0,0.0002,2]
[380181021,1755595848564,-536.157911,0.0002,2]
[380181022,1755595848573,-151.0,0.0002,2]
[380181023,1755595848582,-710.71,0.0002,2]
[380181024,1755595848592,-500.0,0.0002,2]
[380181025,1755595848601,-480.0,0.0002,2]